fUSD/lending_fUSD_20240712
["ID","MTS","AMOUNT","RATE_DAILY","PERIOD"]
[331784915,1720762263876,-588.77,0.00013839,2]
[331784916,1720762263887,-500.0,0.00013839,2]
[331784917,1720762263897,-660.97,0.00013839,2]
[331784918,1720762263909,-631.58,0.00013839,2]
[331784919,1720762263919,-662.06,0.00013839,2]
[331784920,1720762263930,-500.0,0.00013879,2]
[331784921,1720762263942,-297.08186015,0.00013879,2]
[331784922,1720762263952,-369362.94550625,0.0001388,2]
[331784923,1720762263972,-1102.852144,0.0001388,2]
[331784924,1720762263993,-487.67132253,0.0001388,2]
[331784925,1720762264006,-9367.57070698,0.0001388,2]
[331784926,1720762264019,-237975.32478663,0.0001388,2]
[331784927,1720762264030,-557.65,0.00013889,2]
[331784928,1720762264041,-500.0,0.00013889,2]
[331784929,1720762264052,-500.0,0.00013889,2]
[331784930,1720762264063,-500.0,0.00013889,2]
[331784931,1720762264075,-636.2,0.00013889,2]
[331784932,1720762264086,-763.65,0.00013889,2]
[331784933,1720762264097,-563.97,0.00013889,2]
[331784934,1720762264108,-500.0,0.00013889,2]
[331784935,1720762264119,-910.81,0.00013889,2]
[331784936,1720762264132,-1620.13,0.00013889,2]
[331784937,1720762264144,-524.4,0.00013889,2]
[331784938,1720762264155,-1086.0,0.00013889,2]
[331784939,1720762264166,-500.0,0.00013889,2]
[331784940,1720762264177,-1140.52,0.00013889,2]
[331784941,1720762264188,-500.0,0.00013889,2]
[331784942,1720762264200,-758.6,0.00013889,2]
[331784943,1720762264211,-780.36,0.00013889,2]
[331784944,1720762264222,-500.44,0.00013889,2]
[331784945,1720762264233,-870.9,0.00013889,2]
[331784946,1720762264243,-500.0,0.00013889,2]
[331784947,1720762264253,-500.0,0.00013889,2]
[331784948,1720762264262,-500.0,0.00013889,2]
[331784949,1720762264272,-500.0,0.00013889,2]
[331784950,1720762264282,-3679.66,0.00013889,2]
[331784951,1720762264292,-621.83,0.00013889,2]
[331784952,1720762264302,-500.0,0.00013889,2]
[331784953,1720762264311,-500.0,0.00013889,2]
[331784954,1720762264321,-500.0,0.00013889,2]
[331784955,1720762264331,-219.57,0.00013889,2]
[331784956,1720762264342,-500.0,0.00013889,2]
[331784957,1720762264352,-500.0,0.00013889,2]
[331784958,1720762264362,-500.0,0.00013889,2]
[331784959,1720762264372,-626.95,0.00013889,2]
[331784960,1720762264387,-500.0,0.00013889,2]
[331784961,1720762264397,-500.0,0.0001389,2]
[331784962,1720762264407,-915.14,0.0001389,2]
[331784963,1720762264419,-500.0,0.0001389,2]
[331784964,1720762264428,-535.98,0.0001389,2]
[331784965,1720762264438,-1546.67,0.0001389,2]
[331784966,1720762264449,-556.4,0.0001389,2]
[331784967,1720762264460,-500.0,0.0001389,2]
[331784968,1720762264469,-907.24,0.0001389,2]
[331784969,1720762264479,-500.0,0.0001389,2]
[331784970,1720762264489,-500.0,0.0001389,2]
[331784971,1720762264498,-500.0,0.0001389,2]
[331784972,1720762264508,-789.07,0.0001389,2]
[331784973,1720762264518,-500.0,0.0001389,2]
[331784974,1720762264527,-776.86,0.0001389,2]
[331784975,1720762264537,-713.08,0.0001389,2]
[331784976,1720762264978,-500.0,0.0001389,2]
[331784977,1720762264999,-6829.54,0.0001389,2]
[331784978,1720762265023,-1803.56,0.0001389,2]
[331784979,1720762265047,-608.3,0.0001389,2]
[331784980,1720762265060,-802.24,0.0001389,2]
[331784981,1720762265070,-517.56,0.0001389,2]
[331784982,1720762265080,-500.0,0.0001389,2]
[331784983,1720762265091,-7582.8,0.0001389,2]
[331784984,1720762265100,-2762.6,0.0001389,2]
[331784985,1720762265110,-1462.89,0.0001389,2]
[331784986,1720762265120,-698.99,0.0001389,2]
[331784987,1720762265130,-500.0,0.0001389,2]
[331784988,1720762265140,-817.08,0.0001389,2]
[331784989,1720762265150,-500.0,0.0001389,2]
[331784990,1720762265160,-2578.13,0.0001389,2]
[331784991,1720762265170,-624.08,0.0001389,2]
[331784992,1720762265180,-500.0,0.0001389,2]
[331784993,1720762265189,-2620.59,0.0001389,2]
[331784994,1720762265199,-848.55,0.0001389,2]
[331784995,1720762265209,-500.0,0.0001389,2]
[331784996,1720762265219,-2161.72,0.0001389,2]
[331784997,1720762265228,-500.0,0.0001389,2]
[331784998,1720762265238,-1203.6,0.0001389,2]
[331784999,1720762265248,-500.0,0.0001389,2]
[331785000,1720762265258,-500.0,0.0001389,2]
[331785001,1720762265267,-150.0,0.0001389,2]
[331785002,1720762265277,-500.0,0.0001389,2]
[331785003,1720762265286,-500.0,0.0001389,2]
[331785004,1720762265295,-3100.72,0.0001389,2]
[331785005,1720762265305,-737.78,0.0001389,2]
[331785006,1720762265315,-500.0,0.0001389,2]
[331785007,1720762265325,-876.17,0.0001389,2]
[331785008,1720762265334,-500.0,0.0001389,2]
[331785009,1720762265347,-500.0,0.0001389,2]
[331785010,1720762265357,-500.0,0.0001389,2]
[331785011,1720762265367,-842.58,0.0001389,2]
[331785012,1720762265377,-944.36,0.0001389,2]
[331785013,1720762265389,-665.62,0.00013891,2]
[331785014,1720762265399,-947.66,0.00013891,2]
[331785015,1720762265409,-1448.68,0.00013891,2]
[331785016,1720762265419,-1735.0,0.00013891,2]
[331785017,1720762265429,-500.0,0.00013891,2]
[331785018,1720762265439,-835.2,0.00013891,2]
[331785019,1720762265449,-500.0,0.00013891,2]
[331785020,1720762265460,-500.0,0.00013891,2]
[331785021,1720762265471,-673.97,0.00013891,2]
[331785022,1720762265481,-500.0,0.00013891,2]
[331785023,1720762265491,-573.88,0.00013891,2]
[331785024,1720762265500,-505.3,0.00013891,2]
[331785025,1720762265510,-634.01,0.00013891,2]
[331785026,1720762265519,-500.0,0.00013891,2]
[331785027,1720762265529,-1397.84,0.00013891,2]
[331785028,1720762265538,-500.0,0.00013891,2]
[331785029,1720762265548,-538.84,0.00013891,2]
[331785030,1720762265557,-500.0,0.00013891,2]
[331785031,1720762265566,-500.0,0.00013891,2]
[331785032,1720762265576,-500.0,0.00013891,2]
[331785033,1720762265586,-863.19,0.00013891,2]
[331785034,1720762265596,-996.56,0.00013891,2]
[331785035,1720762265605,-1532.95,0.00013891,2]
[331785036,1720762265615,-1216.27,0.00013891,2]
[331785037,1720762265627,-557.83,0.00013891,2]
[331785038,1720762265636,-1710.44,0.00013891,2]
[331785039,1720762265646,-551.39,0.00013891,2]
[331785040,1720762265655,-606.62,0.00013891,2]
[331785041,1720762265668,-500.0,0.00013891,2]
[331785042,1720762265677,-500.0,0.00013891,2]
[331785043,1720762265688,-500.0,0.00013891,2]
[331785044,1720762265697,-500.0,0.00013891,2]
[331785045,1720762265707,-500.0,0.00013891,2]
[331785046,1720762265717,-500.0,0.00013891,2]
[331785047,1720762265727,-500.0,0.00013891,2]
[331785048,1720762265736,-500.0,0.00013891,2]
[331785049,1720762265745,-150.0,0.00013891,2]
[331785050,1720762265755,-500.0,0.00013891,2]
[331785051,1720762265764,-648.98,0.00013891,2]
[331785052,1720762265773,-500.0,0.00013891,2]
[331785053,1720762265783,-1061.51,0.00013891,2]
[331785054,1720762265793,-615.07,0.00013891,2]
[331785055,1720762265803,-500.0,0.00013891,2]
[331785056,1720762265812,-972.93,0.00013891,2]
[331785057,1720762265821,-833.9,0.00013891,2]
[331785058,1720762265831,-482.0,0.00013891,2]
[331785059,1720762265841,-604.26,0.00013891,2]
[331785060,1720762265850,-571.08,0.00013891,2]
[331785061,1720762265861,-500.0,0.00013891,2]
[331785062,1720762265870,-500.0,0.00013891,2]
[331785063,1720762265879,-665.21,0.00013891,2]
[331785064,1720762265889,-1099.25,0.00013891,2]
[331785065,1720762265899,-500.0,0.00013891,2]
[331785066,1720762265908,-906.95,0.00013891,2]
[331785067,1720762265918,-767.01,0.00013891,2]
[331785068,1720762265927,-1598.47,0.00013891,2]
[331785069,1720762265937,-967.72,0.00013891,2]
[331785070,1720762265946,-1095.96,0.00013891,2]
[331785071,1720762265957,-500.0,0.00013891,2]
[331785072,1720762265968,-556.36,0.00013891,2]
[331785073,1720762265978,-500.0,0.00013891,2]
[331785074,1720762265987,-1074.34,0.00013891,2]
[331785075,1720762265997,-1768.05,0.00013891,2]
[331785076,1720762266006,-1258.19,0.00013891,2]
[331785077,1720762266016,-1452.81,0.00013891,2]
[331785078,1720762266025,-500.0,0.00013891,2]
[331785079,1720762266035,-500.0,0.00013891,2]
[331785080,1720762266045,-666.77,0.00013891,2]
[331785081,1720762266054,-926.65,0.00013891,2]
[331785082,1720762266064,-870.37,0.00013891,2]
[331785083,1720762266074,-1443.72,0.00013891,2]
[331785084,1720762266084,-728.75,0.00013891,2]
[331785085,1720762266095,-860.39,0.00013891,2]
[331785086,1720762266104,-343.3,0.00013891,2]
[331785087,1720762266114,-990.26,0.00013891,2]
[331785088,1720762266123,-500.0,0.00013891,2]
[331785089,1720762266133,-576.76,0.00013891,2]
[331785090,1720762266142,-887.16,0.00013891,2]
[331785091,1720762266152,-500.0,0.00013891,2]
[331785092,1720762266162,-500.0,0.00013891,2]
[331785093,1720762266171,-500.0,0.00013891,2]
[331785094,1720762266181,-645.8,0.00013891,2]
[331785095,1720762266191,-500.0,0.00013891,2]
[331785096,1720762266200,-500.0,0.00013891,2]
[331785097,1720762266210,-500.0,0.00013891,2]
[331785098,1720762266219,-500.0,0.00013891,2]
[331785099,1720762266229,-500.0,0.00013891,2]
[331785100,1720762266238,-500.0,0.00013891,2]
[331785101,1720762266248,-500.0,0.00013891,2]
[331785102,1720762266258,-520.14,0.00013891,2]
[331785103,1720762266268,-609.16,0.00013891,2]
[331785104,1720762266277,-1130.35,0.00013891,2]
[331785105,1720762266286,-500.0,0.00013891,2]
[331785106,1720762266296,-500.0,0.00013891,2]
[331785107,1720762266305,-500.0,0.00013891,2]
[331785108,1720762266315,-500.0,0.00013891,2]
[331785109,1720762266324,-500.0,0.00013891,2]
[331785110,1720762266334,-894.04,0.00013891,2]
[331785111,1720762266344,-1653.07,0.00013891,2]
[331785112,1720762266354,-1866.05,0.00013891,2]
[331785113,1720762266363,-560.44,0.00013891,2]
[331785114,1720762266373,-935.66,0.00013891,2]
[331785115,1720762266388,-1000.0,0.00013891,2]
[331785116,1720762266398,-500.0,0.00013891,2]
[331785117,1720762266407,-500.0,0.00013891,2]
[331785118,1720762266418,-688.64,0.00013891,2]
[331785119,1720762266428,-500.0,0.00013891,2]
[331785120,1720762266437,-500.0,0.00013891,2]
[331785121,1720762266446,-1219.74,0.00013891,2]
[331785122,1720762266457,-603.33,0.00013891,2]
[331785123,1720762266467,-500.0,0.00013891,2]
[331785124,1720762266477,-976.12,0.00013891,2]
[331785125,1720762266486,-795.52,0.00013891,2]
[331785126,1720762266496,-500.0,0.00013891,2]
[331785127,1720762266505,-500.0,0.00013891,2]
[331785128,1720762266515,-500.0,0.00013891,2]
[331785129,1720762266526,-500.0,0.00013891,2]
[331785130,1720762266535,-1037.17,0.00013891,2]
[331785131,1720762266545,-1202.18,0.00013891,2]
[331785132,1720762266556,-500.0,0.00013891,2]
[331785133,1720762266568,-916.96,0.00013891,2]
[331785134,1720762266578,-500.0,0.00013892,2]
[331785135,1720762266587,-500.0,0.00013892,2]
[331785136,1720762266597,-541.99,0.00013892,2]
[331785137,1720762266606,-500.0,0.00013892,2]
[331785138,1720762266616,-500.0,0.00013892,2]
[331785139,1720762266625,-736.24,0.00013892,2]
[331785140,1720762266636,-500.0,0.00013892,2]
[331785141,1720762266645,-868.77,0.00013892,2]
[331785142,1720762266654,-637.07,0.00013892,2]
[331785143,1720762266664,-545.88,0.00013892,2]
[331785144,1720762266674,-500.0,0.00013892,2]
[331785145,1720762266683,-500.0,0.00013892,2]
[331785146,1720762266693,-500.0,0.00013892,2]
[331785147,1720762266702,-500.0,0.00013892,2]
[331785148,1720762266712,-240.44646661,0.00013892,2]
[331785149,1720762266722,-793.96,0.00013892,2]
[331785150,1720762266731,-500.0,0.00013892,2]
[331785151,1720762266741,-543.76,0.00013892,2]
[331785152,1720762266758,-500.0,0.00013892,2]
[331785153,1720762266773,-596.96,0.00013892,2]
[331785154,1720762266784,-500.0,0.00013892,2]
[331785155,1720762266795,-500.0,0.00013892,2]
[331785156,1720762266806,-500.0,0.00013892,2]
[331785157,1720762266817,-952.43,0.00013892,2]
[331785158,1720762266827,-500.0,0.00013892,2]
[331785159,1720762266838,-500.0,0.00013892,2]
[331785160,1720762266848,-633.58,0.00013892,2]
[331785161,1720762266859,-500.0,0.00013892,2]
[331785162,1720762266870,-500.0,0.00013892,2]
[331785163,1720762266881,-500.0,0.00013892,2]
[331785164,1720762266891,-500.0,0.00013892,2]
[331785165,1720762266902,-500.0,0.00013892,2]
[331785166,1720762266912,-910.64,0.00013892,2]
[331785167,1720762266922,-158.7667717,0.00013892,2]
[331785168,1720762266932,-567.87,0.00013892,2]
[331785169,1720762266943,-500.0,0.00013892,2]
[331785170,1720762266953,-500.0,0.00013892,2]
[331785171,1720762266964,-500.0,0.00013892,2]
[331785172,1720762266974,-500.0,0.00013892,2]
[331785173,1720762266984,-500.0,0.00013892,2]
[331785174,1720762266995,-500.0,0.00013892,2]
[331785175,1720762267005,-500.0,0.00013892,2]
[331785176,1720762267015,-500.0,0.00013892,2]
[331785177,1720762267025,-500.0,0.00013892,2]
[331785178,1720762267036,-500.0,0.00013892,2]
[331785179,1720762267045,-500.0,0.00013892,2]
[331785180,1720762267056,-500.0,0.00013892,2]
[331785181,1720762267065,-917.97,0.00013892,2]
[331785182,1720762267076,-598.71,0.00013892,2]
[331785183,1720762267087,-500.0,0.00013892,2]
[331785184,1720762267097,-1308.43,0.00013892,2]
[331785185,1720762267107,-500.0,0.00013892,2]
[331785186,1720762267117,-260.87,0.00013892,2]
[331785187,1720762267127,-500.0,0.00013892,2]
[331785188,1720762267137,-651.59,0.00013892,2]
[331785189,1720762267147,-500.0,0.00013892,2]
[331785190,1720762267157,-1636.19,0.00013892,2]
[331785191,1720762267167,-1589.68,0.00013892,2]
[331785192,1720762267177,-500.0,0.00013892,2]
[331785193,1720762267187,-500.0,0.00013892,2]
[331785194,1720762267197,-500.0,0.00013892,2]
[331785195,1720762267207,-500.0,0.00013892,2]
[331785196,1720762267217,-741.18,0.00013892,2]
[331785197,1720762267227,-500.0,0.00013892,2]
[331785198,1720762267237,-500.0,0.00013892,2]
[331785199,1720762267247,-500.0,0.00013892,2]
[331785200,1720762267258,-500.0,0.00013892,2]
[331785201,1720762267269,-560.48,0.00013892,2]
[331785202,1720762267280,-500.0,0.00013892,2]
[331785203,1720762267290,-857.28,0.00013892,2]
[331785204,1720762267301,-500.0,0.00013892,2]
[331785205,1720762267311,-738.69,0.00013892,2]
[331785206,1720762267322,-500.0,0.00013892,2]
[331785207,1720762267332,-2022.33,0.00013892,2]
[331785208,1720762267343,-1186.06,0.00013892,2]
[331785209,1720762267353,-562.35,0.00013892,2]
[331785210,1720762267364,-506.16384794,0.00013892,2]
[331785211,1720762267374,-500.0,0.00013892,2]
[331785212,1720762267388,-500.0,0.00013892,2]
[331785213,1720762267398,-500.0,0.00013892,2]
[331785214,1720762267408,-500.0,0.00013892,2]
[331785215,1720762267419,-500.0,0.00013892,2]
[331785216,1720762267430,-500.0,0.00013892,2]
[331785217,1720762267441,-500.0,0.00013892,2]
[331785218,1720762267451,-1027.58,0.00013892,2]
[331785219,1720762267463,-500.0,0.00013892,2]
[331785220,1720762267473,-500.0,0.00013892,2]
[331785221,1720762267484,-679.53,0.00013892,2]
[331785222,1720762267494,-500.0,0.00013892,2]
[331785223,1720762267504,-815.52,0.00013892,2]
[331785224,1720762267515,-500.0,0.00013892,2]
[331785225,1720762267525,-500.0,0.00013892,2]
[331785226,1720762267535,-963.78,0.00013892,2]
[331785227,1720762267545,-500.0,0.00013892,2]
[331785228,1720762267555,-500.0,0.00013892,2]
[331785229,1720762267565,-584.73,0.00013892,2]
[331785230,1720762267575,-500.0,0.00013892,2]
[331785231,1720762267585,-500.0,0.00013892,2]
[331785232,1720762267596,-1102.71,0.00013892,2]
[331785233,1720762267606,-969.22,0.00013892,2]
[331785234,1720762267616,-369.18,0.00013892,2]
[331785235,1720762267626,-500.0,0.00013892,2]
[331785236,1720762267636,-500.0,0.00013892,2]
[331785237,1720762267645,-500.0,0.00013892,2]
[331785238,1720762267656,-500.0,0.00013892,2]
[331785239,1720762267666,-500.0,0.00013892,2]
[331785240,1720762267676,-1149.94,0.00013892,2]
[331785241,1720762267686,-1023.69,0.00013892,2]
[331785242,1720762267696,-500.0,0.00013892,2]
[331785243,1720762267706,-1333.0,0.00013892,2]
[331785244,1720762267717,-530.2,0.00013892,2]
[331785245,1720762267726,-500.0,0.00013892,2]
[331785246,1720762267736,-815.76,0.00013892,2]
[331785247,1720762267746,-594.85599685,0.00013892,2]
[331785248,1720762267756,-500.0,0.00013892,2]
[331785249,1720762267767,-500.0,0.00013892,2]
[331785250,1720762267777,-596.0,0.00013892,2]
[331785251,1720762267787,-500.0,0.00013892,2]
[331785252,1720762267796,-930.82,0.00013892,2]
[331785253,1720762267807,-8.99898045,0.00013892,2]
[331785254,1720762267834,-491.00101955,0.00013892,2]
[331785255,1720762267844,-453.645352,0.00013892,2]
[331785256,1720762268610,-500.0,0.0001378,2]
[331785257,1720762268620,-500.0,0.00013782,2]
[331785258,1720762268630,-500.0,0.00013835,2]
[331785259,1720762268640,-500.0,0.0001389,2]
[331785260,1720762268650,-46.354648,0.00013892,2]
[331785261,1720762268659,-134.605352,0.00013892,2]
[331785262,1720762268672,-365.394648,0.00013892,2]
[331785263,1720762268681,-252.9957125,0.00013892,2]
[331785264,1720762268760,-247.0042875,0.00013892,2]
[331785265,1720762268769,-1328.27,0.00013892,2]
[331785266,1720762268779,-500.0,0.00013892,2]
[331785267,1720762268789,-500.0,0.00013892,2]
[331785268,1720762268798,-500.0,0.00013892,2]
[331785269,1720762268809,-23.72265752,0.00013892,2]
[331785270,1720762268821,-674.95734248,0.00013892,2]
[331785271,1720762268830,-500.0,0.00013892,2]
[331785272,1720762268841,-942.27,0.00013892,2]
[331785273,1720762268851,-500.0,0.00013892,2]
[331785274,1720762268860,-500.0,0.00013892,2]
[331785275,1720762268872,-910.83957104,0.00013892,2]
[331785276,1720762268884,-24.47042896,0.00013892,2]
[331785277,1720762268893,-426.76366376,0.00013892,2]
[331785278,1720762268915,-73.23633624,0.00013892,2]
[331785279,1720762268924,-665.61,0.00013892,2]
[331785280,1720762268934,-590.5,0.00013892,2]
[331785281,1720762268944,-48.17866376,0.00013892,2]
[331785282,1720762269037,-763.24133624,0.00013892,2]
[331785283,1720762269047,-426.66064442,0.00013892,2]
[331785284,1720762269058,-218.01935558,0.00013892,2]
[331785285,1720762269068,-500.0,0.00013892,2]
[331785286,1720762269077,-500.0,0.00013892,2]
[331785287,1720762269087,-232.02397817,0.00013892,2]
[331785288,1720762269099,-585.22668101,0.00013892,2]
[331785289,1720762269110,-556.3,0.00013892,2]
[331785290,1720762302621,500.0,9.102e-05,2]
[331785292,1720762383090,1871.67903996,9.102e-05,2]
[331785293,1720762389533,-15000.0,0.00011748,2]
[331785294,1720762404082,1293.50245664,0.00011199,2]
[331785295,1720762404117,847.70617431,0.00011199,2]
[331785297,1720762454492,178.93060234,0.00011199,2]
[331785298,1720762454519,296.30291656,0.00011199,2]
[331785299,1720762475523,459.36162077,0.00011199,2]
[331785300,1720762479646,529.80766427,0.00011199,2]
[331785301,1720762492741,157.52085627,0.00011199,2]
[331785302,1720762497992,-553.0,0.00011747,2]
[331785303,1720762498018,-447.0,0.00011748,2]
[331785304,1720762504270,414.02655178,0.00011199,2]
[331785305,1720762524654,500.0,9.102e-05,2]
[331785306,1720762528973,262.05866991,0.00011199,2]
[331785307,1720762531919,287.22078395,0.00011199,2]
[331785308,1720762534074,170.40736009,0.00011199,2]
[331785309,1720762535428,206.42391307,0.00011199,2]
[331785310,1720762535861,155.74287386,0.00011199,2]
[331785311,1720762539993,156.16807891,0.00011199,2]
[331785312,1720762544403,271.12725774,0.00011199,2]
[331785313,1720762548904,306.97211217,0.00011199,2]
[331785314,1720762573178,553.49,0.00010959,2]
[331785318,1720762829401,14853.54928316,0.00011199,2]
[331785319,1720762839150,368.55,0.00010008,2]
[331785320,1720762846700,-481.7893,0.00011748,2]
[331785321,1720762846728,-952.67650872,0.00011878,2]
[331785322,1720762846755,-65.53419128,0.00011978,2]
[331785323,1720762894996,267.45812738,0.00011199,2]
[331785324,1720762898599,155.0,0.00011199,2]
[331785325,1720762899655,475.91957555,0.00011199,2]
[331785326,1720762902398,156.06045591,0.00011199,2]
[331785327,1720762903784,155.20374793,0.00011199,2]
[331785328,1720762907474,269.8232753,0.00011199,2]
[331785329,1720762927209,276.54348187,0.00011199,2]
[331785330,1720762934013,163.92127245,0.00011199,2]
[331785331,1720762937905,155.0,0.00011199,2]
[331785332,1720762947088,155.37448917,0.00011199,2]
[331785333,1720762947847,155.0,0.00011199,2]
[331785334,1720762948564,156.7028007,0.00011199,2]
[331785335,1720762976126,1275.26955291,0.00011199,2]
[331785336,1720762993448,206.18570205,0.00011199,2]
[331785337,1720763049912,187.79696558,0.00011199,2]
[331785338,1720763064784,439.52111545,0.00011199,2]
[331785343,1720763221910,12636.2197445,0.00011199,2]
[331785344,1720763249739,178.50327553,0.00011199,2]
[331785345,1720763321031,156.15993368,0.00011199,2]
[331785346,1720763361102,367.82,9.769e-05,2]
[331785348,1720763410814,-166.04615262,0.00011613,2]
[331785349,1720763410845,-300.0,0.00011647,2]
[331785350,1720763410875,-5020.32507654,0.00011648,2]
[331785351,1720763418918,220.9155467,0.00011199,2]
[331785352,1720763424585,155.1098124,0.00011199,2]
[331785353,1720763431463,-6089.04562346,0.00011648,2]
[331785354,1720763431473,-182.56,0.00011713,2]
[331785355,1720763431482,-1541.0,0.0001173,2]
[331785356,1720763431492,-3521.89865233,0.0001173,2]
[331785357,1720763431501,-155.32,0.00011812,2]
[331785358,1720763431512,-155.32,0.00011831,2]
[331785359,1720763431521,-250.0,0.00011846,2]
[331785360,1720763431530,-155.32,0.00011851,2]
[331785361,1720763431540,-155.32,0.00011871,2]
[331785362,1720763431810,-167.68,0.00011898,2]
[331785363,1720763431821,-23900.0,0.00011898,2]
[331785364,1720763431830,-281.7,0.00011898,2]
[331785365,1720763431840,-499.99,0.00011898,2]
[331785366,1720763431850,-299.99,0.00011898,2]
[331785367,1720763431859,-150.0,0.00011907,2]
[331785368,1720763431869,-250.0,0.00011908,2]
[331785369,1720763431879,-1233.78,0.00011933,2]
[331785370,1720763431889,-150.0,0.00011945,2]
[331785371,1720763431898,-1137.51,0.00011978,2]
[331785372,1720763431909,-181.56,0.00011979,2]
[331785373,1720763431919,-367.82,0.00012032,2]
[331785374,1720763431929,-195.2,0.00012597,2]
[331785375,1720763431939,-195.2,0.00012601,2]
[331785376,1720763431948,-195.2,0.00012604,2]
[331785377,1720763431958,-195.2,0.00012607,2]
[331785378,1720763431967,-195.2,0.00012611,2]
[331785379,1720763431977,-195.2,0.00012614,2]
[331785380,1720763431986,-195.2,0.00012617,2]
[331785381,1720763431996,-195.2,0.00012621,2]
[331785382,1720763432005,-195.2,0.00012624,2]
[331785383,1720763432015,-195.2,0.00012627,2]
[331785384,1720763432024,-195.2,0.00012631,2]
[331785385,1720763432034,-195.2,0.00012634,2]
[331785386,1720763432043,-195.2,0.00012637,2]
[331785387,1720763432054,-195.2,0.00012641,2]
[331785388,1720763432063,-845.154,0.00012641,2]
[331785389,1720763432073,-195.2,0.00012644,2]
[331785390,1720763432083,-195.2,0.00012647,2]
[331785391,1720763432092,-195.2,0.0001265,2]
[331785392,1720763432102,-195.2,0.00012654,2]
[331785393,1720763432112,-195.2,0.00012657,2]
[331785394,1720763432121,-195.2,0.0001266,2]
[331785395,1720763432130,-1000.0,0.00012684,2]
[331785396,1720763432140,-166.51,0.00012706,2]
[331785397,1720763432150,-420.0,0.0001279,2]
[331785398,1720763432159,-174.95,0.0001295,2]
[331785399,1720763432168,-1500.0,0.00013128,2]
[331785400,1720763432178,-671.14973941,0.00013237,2]
[331785401,1720763432188,-181.56,0.00013477,2]
[331785402,1720763432197,-196.78351633,0.00013555,2]
[331785403,1720763432207,-11878.93361729,0.00013573,2]
[331785404,1720763432217,-23586.7382,0.00013583,2]
[331785405,1720763432226,-324.93960871,0.00013598,2]
[331785406,1720763432235,-6269.7295,0.00013679,2]
[331785407,1720763432245,-3370.7638,0.00013679,2]
[331785408,1720763432255,-101827.55056818,0.0001368,2]
[331785409,1720763432754,-389.00967572,0.0001368,2]
[331785410,1720763432766,-2274.36,0.0001368,2]
[331785411,1720763432827,-9337.10640704,0.0001368,2]
[331785412,1720763432858,-2065.60483936,0.0001368,2]
[331785413,1720763432875,-539.7430628,0.0001368,2]
[331785414,1720763432890,-728.19498971,0.0001368,2]
[331785415,1720763432902,-588.74678369,0.0001368,2]
[331785416,1720763432913,-2009.17611856,0.0001368,2]
[331785417,1720763432924,-3483.57441616,0.0001368,2]
[331785418,1720763432943,-4020.12,0.0001368,2]
[331785419,1720763432979,-16958.93883966,0.0001368,2]
[331785420,1720763432990,-14697.76309912,0.0001368,2]
[331785421,1720763433000,-305.26,0.00013689,2]
[331785422,1720763433009,-150.0,0.00013689,2]
[331785423,1720763433019,-500.0,0.00013698,2]
[331785424,1720763433028,-616.81,0.00013698,2]